bitfinex/quotes_SOLUSD_20250609
["timestamp","ask_amount","ask_price","bid_price","bid_amount"]
[1749479950357,15.04268247,154.74,154.7,21.50663671]
[1749479950572,2.23291378,154.76,154.73,15.04268247]
[1749479951272,2.23291378,154.76,154.73,24.4975845]
[1749479951588,2.23291378,154.76,154.72,24.4975845]
[1749479951784,24.4975845,154.75,154.7,6.46395424]
[1749479952092,8.69457314,154.76,154.69,32.46444568]
[1749479952093,24.4975845,154.73,154.69,32.46444568]
[1749479952260,24.4975845,154.73,154.68,30.96248784]
[1749479953299,24.4975845,154.72,154.68,6.46490334]
[1749479953671,30.96089214,154.72,154.67,56.96277771]
[1749479953972,24.4975845,154.69,154.65,31.5]
[1749479954159,24.4975845,154.68,154.65,11.96615862]
[1749479955464,24.4975845,154.69,154.65,36.46374312]
[1749479955665,24.4975845,154.7,154.65,36.46374312]
[1749479955875,24.4975845,154.7,154.66,24.4975845]
[1749479956074,24.4975845,154.72,154.68,24.4975845]
[1749479956280,24.4975845,154.73,154.68,24.4975845]
[1749479956482,1.5888,154.74,154.69,24.4975845]
[1749479956778,24.4975845,154.73,154.69,24.4975845]
[1749479957004,24.4975845,154.73,154.68,50.4975845]
[1749479957473,24.4975845,154.73,154.69,6.46454198]
[1749479960192,24.4975845,154.71,154.68,32.4648899]
[1749479960490,24.4975845,154.7,154.67,6.46521757]
[1749479960875,24.4975845,154.71,154.67,30.96280207]
[1749479961076,4.79511647,154.72,154.67,30.96280207]
[1749479961077,29.29270097,154.72,154.67,30.96280207]
[1749479961686,24.4975845,154.72,154.68,24.4975845]
[1749479962017,29.29270097,154.72,154.67,30.96280207]
[1749479962182,24.4975845,154.72,154.67,30.96280207]
[1749479962585,29.29270097,154.72,154.67,30.96280207]
[1749479962786,24.4975845,154.72,154.67,30.96280207]
[1749479963002,29.29270097,154.72,154.67,30.96280207]
[1749479963201,24.4975845,154.72,154.67,30.96280207]
[1749479963406,4.79511647,154.72,154.68,24.4975845]
[1749479963584,4.79511647,154.74,154.7,24.4975845]
[1749479963785,4.79511647,154.75,154.71,24.4975845]
[1749479964088,4.79511647,154.74,154.71,24.4975845]
[1749479964289,4.79511647,154.75,154.71,24.4975845]
[1749479965095,4.79511647,154.75,154.7,24.4975845]
[1749479965096,24.4975845,154.74,154.7,24.4975845]
[1749479965297,24.4975845,154.73,154.69,26.0]
[1749479965692,24.4975845,154.73,154.7,6.46412411]
[1749479966282,23.44476533,154.75,154.7,6.46412411]
[1749479966486,24.4975845,154.74,154.7,30.96170861]
[1749479967000,23.44476533,154.75,154.7,30.96170861]
[1749479967001,47.94234983,154.75,154.7,30.96170861]
[1749479968396,24.4975845,154.74,154.7,6.46412411]
[1749479968988,24.4975845,154.73,154.7,6.46412411]
[1749479969186,24.4975845,154.71,154.66,24.4975845]
[1749479969385,24.4975845,154.7,154.66,24.4975845]
[1749479969578,23.44476533,154.74,154.66,24.4975845]
[1749479969773,24.4975845,154.72,154.68,6.46495991]
[1749479969996,29.29270097,154.74,154.7,24.4975845]
[1749479970205,24.4975845,154.74,154.7,24.4975845]
[1749479970500,26.73049828,154.76,154.72,24.4975845]
[1749479970683,7.06188045,154.76,154.73,24.4975845]
[1749479970876,2.23291378,154.76,154.73,24.4975845]
[1749479971384,2.23291378,154.76,154.74,24.4975845]
[1749479971904,2.23291378,154.76,154.75,6.46203554]
[1749479972100,2.23291378,154.76,154.75,30.95962004]
[1749479972298,2.23291378,154.76,154.75,36.45962004]
[1749479974405,2.23291378,154.76,154.75,5.5]
[1749479974794,2.23291378,154.76,154.75,11.96203554]
[1749479976192,2.23291378,154.76,154.75,5.5]
[1749479976694,2.23291378,154.76,154.75,11.96203554]
[1749479977694,2.23291378,154.76,154.75,36.45962004]
[1749479979205,2.23291378,154.76,154.75,5.5]
[1749479979512,2.23291378,154.76,154.75,11.96203554]
[1749479980787,2.23291378,154.76,154.75,36.45962004]
[1749479982789,2.23291378,154.76,154.75,11.96203554]
[1749479983206,2.23291378,154.76,154.75,36.45962004]
[1749479983895,2.23291378,154.76,154.75,11.96203554]
[1749479984096,2.23291378,154.76,154.75,5.5]
[1749479984292,2.23291378,154.76,154.75,11.96203554]
[1749479985618,2.23291378,154.76,154.75,5.5]
[1749479987205,26.73049828,154.76,154.75,5.5]
[1749479987613,2.23291378,154.76,154.75,5.5]
[1749479988207,2.23291378,154.76,154.75,11.96203554]
[1749479988612,2.23291378,154.76,154.75,5.5]
[1749479991126,17.26657137,154.76,154.75,5.5]
[1749479992915,2.23291378,154.76,154.75,5.5]
[1749479993418,2.23291378,154.76,154.75,26.99569313]
[1749479993622,2.23291378,154.76,154.75,27.1378547]
[1749479994806,17.26657137,154.76,154.75,11.96203554]
[1749479995009,2.23291378,154.76,154.75,11.96203554]
[1749479995922,2.23291378,154.76,154.75,26.99569313]
[1749479997022,2.23291378,154.76,154.75,11.96203554]
[1749479997631,17.26657137,154.76,154.75,5.5]
[1749479998722,2.23291378,154.76,154.75,5.5]
[1749479999109,2.23291378,154.76,154.75,11.96203554]
[1749480001508,2.23291378,154.76,154.75,26.99569313]
[1749480001931,2.23291378,154.76,154.75,11.96203554]
[1749480002430,2.23291378,154.76,154.75,26.99569313]
[1749480003006,2.23291378,154.76,154.75,11.96203554]
[1749480004534,2.23291378,154.76,154.75,5.5]
[1749480005809,17.26657137,154.76,154.75,5.5]
[1749480006415,2.23291378,154.76,154.75,5.5]
[1749480006614,2.23291378,154.76,154.74,6.46217148]
[1749480006818,2.23291378,154.76,154.74,21.49582907]
[1749480007438,2.23291378,154.76,154.74,6.46217148]
[1749480007945,19.86249676,154.75,154.69,15.03365759]
[1749480008146,15.03365759,154.74,154.7,15.03365759]
[1749480008345,19.86249676,154.75,154.7,15.03365759]
[1749480008713,15.03365759,154.75,154.7,15.03365759]
[1749480009034,19.86710247,154.74,154.7,15.03365759]
[1749480009246,19.86710247,154.74,154.69,41.03365759]
[1749480009247,15.03365759,154.74,154.69,41.03365759]
[1749480009452,15.03365759,154.73,154.69,47.49798829]
[1749480009917,19.86710247,154.74,154.69,47.49798829]
[1749480010120,15.03365759,154.74,154.69,47.49798829]
[1749480010328,19.86710247,154.74,154.69,47.49798829]
[1749480010543,15.03365759,154.74,154.69,47.49798829]
[1749480010714,19.86751408,154.74,154.69,47.49798829]
[1749480010917,10.31943539,154.76,154.7,15.03365759]
[1749480010918,4.83385649,154.75,154.7,15.03365759]
[1749480011118,19.86751408,154.74,154.7,15.03365759]
[1749480011321,15.03365759,154.74,154.7,15.03365759]
[1749480011529,4.83404569,154.75,154.73,15.03365759]
[1749480011722,2.23291378,154.76,154.73,15.03365759]
[1749480012739,19.86805543,154.75,154.71,6.46370628]
[1749480013044,19.86805543,154.75,154.72,5.5]
[1749480013231,15.03365759,154.74,154.72,5.5]
[1749480013538,46.482293,154.73,154.72,5.5]
[1749480014337,46.482293,154.73,154.67,6.46527069]
[1749480014580,15.03365759,154.7,154.67,6.46527069]
[1749480014760,15.03365759,154.68,154.63,6.46705037]
[1749480014915,15.03365759,154.67,154.63,6.46705037]
[1749480015116,15.03365759,154.67,154.64,26.0]
[1749480015348,24.53125784,154.66,154.63,6.46705037]
[1749480015518,24.53125784,154.66,154.63,26.0]
[1749480016233,24.53125784,154.66,154.62,6.46746863]
[1749480016416,24.53125784,154.65,154.62,6.46746863]
[1749480017521,24.53125784,154.65,154.62,26.0]
[1749480018040,24.53125784,154.64,154.61,6.46788694]
[1749480018251,1.5399,154.67,154.63,5.5]
[1749480019230,8.0053874,154.67,154.63,5.5]
[1749480019430,24.53125784,154.64,154.63,5.5]
[1749480020443,43.1809067,154.64,154.63,5.5]
[1749480020643,18.64964886,154.63,154.58,2.87575207]
[1749480020956,24.53125784,154.6,154.58,2.87575207]
[1749480021342,24.53125784,154.6,154.58,9.34463671]
[1749480022034,24.53125784,154.61,154.58,9.34463671]
[1749480022363,25.11600749,154.65,154.58,9.34463671]
[1749480022555,24.53125784,154.61,154.58,9.34463671]
[1749480023840,24.53125784,154.6,154.58,9.34463671]
[1749480024035,24.53125784,154.59,154.58,2.87575207]
[1749480024236,24.53125784,154.59,154.54,6.47081661]
[1749480024442,24.53125784,154.57,154.56,26.0]
[1749480024747,24.53125784,154.58,154.54,57.00207445]
[1749480024944,24.53125784,154.6,154.56,24.53125784]
[1749480025146,1.6665,154.61,154.58,6.46914219]
[1749480025457,6.233,154.64,154.58,57.00040003]
[1749480025761,26.10345784,154.65,154.61,24.53125784]
[1749480025945,24.53125784,154.64,154.6,24.53125784]
[1749480026262,24.53125784,154.64,154.59,24.53125784]
[1749480026443,24.53125784,154.63,154.59,24.53125784]
[1749480026754,24.53125784,154.62,154.58,73.1732555]
[1749480026953,24.53125784,154.63,154.59,24.53125784]
[1749480027263,24.53125784,154.64,154.6,6.4683053]
[1749480027648,24.53125784,154.63,154.6,6.4683053]
[1749480028758,24.53125784,154.62,154.59,6.4686651]
[1749480028961,24.53125784,154.6,154.58,6.46909615]
[1749480029171,24.53125784,154.59,154.56,6.46997929]
[1749480029344,24.53125784,154.58,154.54,24.53125784]
[1749480029540,24.53125784,154.58,154.56,26.0]
[1749480030639,24.53125784,154.58,154.54,24.53125784]
[1749480030843,24.53125784,154.58,154.55,26.0]
[1749480031050,24.53125784,154.58,154.53,47.18058158]
[1749480031233,24.53125784,154.57,154.53,6.47123535]
[1749480031670,24.53125784,154.57,154.53,57.00249319]
[1749480032456,24.53125784,154.58,154.53,57.00249319]
[1749480032758,24.53125784,154.57,154.53,32.47123535]
[1749480032961,24.53125784,154.56,154.53,32.47123535]
[1749480033462,24.53125784,154.55,154.53,32.47123535]
[1749480033643,20.29334886,154.59,154.51,6.472073]
[1749480033644,24.53125784,154.54,154.51,6.472073]
[1749480035135,24.53125784,154.54,154.5,6.4724919]
[1749480035434,24.53125784,154.51,154.49,6.47277753]
[1749480035754,18.64964886,154.54,154.49,6.47277753]
[1749480036056,24.53125784,154.53,154.49,32.47277753]
[1749480038075,24.53125784,154.52,154.49,32.47277753]
[1749480038278,24.53125784,154.51,154.49,32.47277753]
[1749480039584,24.53125784,154.51,154.49,6.47277753]
[1749480040143,24.53125784,154.51,154.48,6.47332988]
[1749480041175,24.53125784,154.53,154.49,24.53125784]
[1749480042680,24.53125784,154.53,154.5,6.4724919]
[1749480043774,24.53125784,154.53,154.49,31.00405762]
[1749480043986,24.53125784,154.52,154.49,6.47279978]
[1749480044162,18.64964886,154.54,154.49,6.47279978]
[1749480044163,24.53125784,154.53,154.49,31.00405762]
[1749480044362,18.64964886,154.56,154.5,24.53125784]
[1749480044558,18.64964886,154.56,154.51,31.00333084]
[1749480044774,24.53125784,154.55,154.51,31.00333084]
[1749480045382,15.07653788,154.55,154.51,21.54861088]
[1749480045758,7.8258,154.59,154.51,37.72879339]
[1749480045960,15.07653788,154.57,154.53,15.07653788]
[1749480046600,15.07653788,154.57,154.54,6.47081661]
[1749480048779,15.07653788,154.56,154.53,6.47123535]
[1749480051302,15.07653788,154.58,154.55,32.47039792]
[1749480051876,15.07653788,154.57,154.55,6.47039792]
[1749480052370,15.07653788,154.57,154.54,6.47081661]
[1749480052569,1.6437,154.59,154.54,21.54735449]
[1749480052776,33.72618674,154.61,154.54,22.64785815]
[1749480052997,15.07653788,154.6,154.56,15.07653788]
[1749480053494,15.07653788,154.58,154.54,6.47081661]
[1749480053679,15.07653788,154.57,154.54,6.47081661]
[1749480053883,15.07653788,154.56,154.54,6.47081661]
[1749480054271,15.07653788,154.55,154.53,32.47115443]
[1749480054475,15.07653788,154.57,154.53,32.47115443]
[1749480054775,15.07653788,154.58,154.53,47.54769231]
[1749480055376,15.07653788,154.57,154.53,47.54769231]
[1749480055779,15.07653788,154.57,154.53,32.47115443]
[1749480058884,15.07653788,154.57,154.53,47.54769231]
[1749480059998,15.07653788,154.57,154.53,32.47115443]
[1749480061390,15.07653788,154.57,154.53,47.54769231]
[1749480062916,15.07653788,154.56,154.53,32.47115443]
[1749480063210,15.07653788,154.55,154.53,6.47115443]
[1749480063591,15.07653788,154.56,154.53,6.47115443]
[1749480066808,15.07653788,154.59,154.55,15.07653788]
[1749480067198,18.64964886,154.62,154.57,15.07653788]
[1749480067403,33.72618674,154.62,154.57,15.07653788]
[1749480067702,15.07653788,154.62,154.57,15.07653788]
[1749480067903,15.07653788,154.62,154.58,6.46914219]
[1749480068103,15.07653788,154.62,154.55,15.07653788]
[1749480068104,15.07653788,154.6,154.55,15.07653788]
[1749480068308,15.07653788,154.59,154.55,26.0]
[1749480069210,15.07653788,154.59,154.55,32.47007557]
[1749480069517,15.07653788,154.59,154.55,47.54661345]
[1749480070284,15.07653788,154.59,154.55,32.47007557]
[1749480070485,15.07653788,154.59,154.55,47.54661345]
[1749480071311,15.07653788,154.56,154.54,26.0]
[1749480071497,6.46874606,154.59,154.53,41.07653788]
[1749480071498,15.07653788,154.57,154.53,41.07653788]
[1749480071701,15.07653788,154.58,154.54,26.0]
[1749480072013,6.46874606,154.59,154.54,41.07653788]
[1749480072217,15.07653788,154.58,154.54,26.0]
[1749480072423,15.07653788,154.58,154.54,47.54701309]
[1749480072999,18.64964886,154.62,154.57,15.07653788]
[1749480073313,33.72618674,154.62,154.57,15.07653788]
[1749480074099,33.72618674,154.62,154.58,6.46914219]
[1749480074699,18.64964886,154.62,154.58,6.46914219]
[1749480074908,33.72618674,154.62,154.58,6.46914219]
[1749480075495,18.64964886,154.66,154.6,15.07653788]
[1749480075703,15.07653788,154.65,154.6,15.07653788]
[1749480075902,15.07653788,154.65,154.61,15.07653788]
[1749480076110,15.07653788,154.64,154.59,15.07653788]
[1749480076510,15.07653788,154.63,154.6,6.4683053]
[1749480077011,15.07653788,154.64,154.6,6.4683053]
[1749480078722,15.07653788,154.63,154.6,6.4683053]
[1749480078906,15.07653788,154.62,154.6,6.4683053]
[1749480079225,15.07653788,154.61,154.57,26.0]
[1749480079425,15.07653788,154.6,154.57,26.0]
[1749480079722,15.07653788,154.61,154.57,26.0]
[1749480080318,15.07653788,154.61,154.57,32.46942362]
[1749480081124,15.07653788,154.61,154.58,5.5]
[1749480081328,15.07653788,154.64,154.59,15.07653788]
[1749480081628,15.07653788,154.63,154.59,15.07653788]
[1749480081832,15.07653788,154.63,154.58,20.57653788]
[1749480082428,15.07653788,154.63,154.59,6.46872372]
[1749480083133,15.07653788,154.63,154.59,21.5452616]
[1749480083926,23.82535258,154.68,154.59,21.5452616]
[1749480083927,1.551,154.68,154.62,15.07653788]
[1749480084129,15.07653788,154.67,154.63,15.07653788]
[1749480084431,15.07653788,154.68,154.63,15.07653788]
[1749480085105,15.07653788,154.7,154.65,15.07653788]
[1749480085320,5.96410776,154.73,154.66,15.07653788]
[1749480085505,15.07653788,154.71,154.66,15.07653788]
[1749480085707,15.07653788,154.69,154.65,41.07653788]
[1749480085911,15.07653788,154.67,154.63,15.07653788]
[1749480086242,15.07653788,154.66,154.63,26.0]
[1749480087043,15.07653788,154.66,154.63,32.46688352]
[1749480087612,15.07653788,154.68,154.63,47.5434214]
[1749480087947,22.12232906,154.72,154.66,15.07653788]
[1749480087948,15.07653788,154.7,154.66,15.07653788]
[1749480088121,15.07653788,154.71,154.67,15.07653788]
[1749480088437,15.07653788,154.71,154.66,41.07653788]
[1749480089036,15.07653788,154.71,154.67,6.4653779]
[1749480090822,15.07653788,154.73,154.69,15.07653788]
[1749480091013,1.5755,154.75,154.7,15.07653788]
[1749480091333,15.07653788,154.74,154.7,26.0]
[1749480091924,2.23291378,154.76,154.71,15.07653788]
[1749480092125,2.23291378,154.76,154.7,26.0]
[1749480092126,15.07653788,154.75,154.7,41.07653788]
[1749480092449,2.23291378,154.76,154.7,41.07653788]
[1749480092450,15.07653788,154.74,154.7,41.07653788]
[1749480092936,15.07653788,154.74,154.7,47.54041091]
[1749480094659,15.07653788,154.74,154.7,32.46387303]
[1749480095436,8.69469967,154.76,154.7,32.46387303]
[1749480095612,2.23291378,154.76,154.7,47.54041091]
[1749480095816,17.30945166,154.76,154.71,15.07653788]
[1749480096261,2.23291378,154.76,154.73,21.53940868]
[1749480096545,2.23291378,154.76,154.74,15.07653788]
[1749480097117,2.23291378,154.76,154.73,21.53940868]
[1749480098128,2.23291378,154.76,154.74,15.07653788]
[1749480098335,2.23291378,154.76,154.75,21.53857342]
[1749480098927,2.23291378,154.76,154.75,21.68073499]
[1749480099821,2.23291378,154.76,154.75,21.53857342]
[1749480100022,2.23291378,154.76,154.75,6.46203554]
[1749480101248,2.23291378,154.76,154.75,21.53857342]
[1749480102145,2.23291378,154.76,154.75,21.68073499]
[1749480103744,2.23291378,154.76,154.75,21.82289656]
[1749480104043,2.23291378,154.76,154.75,47.82289656]
[1749480104450,2.23291378,154.76,154.75,21.82289656]
[1749480104639,2.23291378,154.76,154.75,6.46203554]
[1749480104842,2.23291378,154.76,154.74,32.46230075]
[1749480105228,15.07653788,154.75,154.71,6.46370628]
[1749480105427,15.07653788,154.75,154.71,32.46370628]
[1749480106032,15.07653788,154.75,154.71,47.54024416]
[1749480106227,17.30945166,154.76,154.72,15.07653788]
[1749480106432,2.23291378,154.76,154.73,21.53940868]
[1749480106839,2.23291378,154.76,154.73,6.4628708]
[1749480107157,17.30945166,154.76,154.73,6.4628708]
[1749480107554,2.23291378,154.76,154.73,6.4628708]
[1749480107745,2.23291378,154.76,154.74,15.07653788]
[1749480108231,2.23291378,154.76,154.73,37.69658569]
[1749480108630,2.23291378,154.76,154.73,21.53940868]
[1749480109676,2.4241471,154.75,154.73,6.4628708]
[1749480109831,17.50077888,154.74,154.71,32.46353782]
[1749480110163,2.42432687,154.73,154.71,6.46353782]
[1749480110348,15.07653788,154.74,154.71,32.46353782]
[1749480110731,8.69454896,154.76,154.71,32.46353782]
[1749480110732,15.07653788,154.73,154.71,32.46353782]
[1749480111053,15.07653788,154.74,154.71,32.46353782]
[1749480114261,15.07653788,154.74,154.71,48.62280354]
[1749480115342,17.30945166,154.76,154.71,63.69934142]
[1749480115663,17.30945166,154.76,154.72,15.07653788]
[1749480116767,15.07653788,154.74,154.71,48.62280354]
[1749480117664,15.07653788,154.73,154.71,6.46353782]
[1749480117893,15.07653788,154.72,154.71,6.46353782]
[1749480118165,15.07653788,154.72,154.7,6.46393591]
[1749480118464,8.69468836,154.76,154.68,6.46495991]
[1749480118465,15.07653788,154.71,154.68,6.46495991]
[1749480120771,15.07653788,154.7,154.68,6.46495991]
[1749480121264,15.07653788,154.71,154.68,6.46495991]
[1749480121468,18.64964886,154.75,154.68,6.46495991]
[1749480121650,18.64964886,154.75,154.69,15.07653788]
[1749480121651,15.07653788,154.73,154.69,15.07653788]
[1749480122155,15.07653788,154.73,154.68,37.70389758]
[1749480122359,15.07653788,154.72,154.68,22.6273597]
[1749480122554,15.07653788,154.71,154.68,6.46495991]
[1749480122753,15.07653788,154.7,154.67,32.46520903]
[1749480123575,15.07653788,154.7,154.67,26.0]
[1749480123851,15.07653788,154.7,154.66,32.46560774]
[1749480124049,15.07653788,154.72,154.67,15.07653788]
[1749480124256,15.07653788,154.72,154.68,15.07653788]
[1749480125051,15.07653788,154.72,154.69,6.46454198]
[1749480126456,12.57653788,154.72,154.69,6.46454198]
[1749480126945,15.07653788,154.74,154.69,21.54107986]
[1749480127152,18.64964886,154.75,154.69,21.54107986]
[1749480127353,15.07653788,154.74,154.69,21.54107986]
[1749480127968,18.64964886,154.75,154.69,21.54107986]
[1749480128176,15.07653788,154.73,154.69,21.54107986]
[1749480128655,15.07653788,154.73,154.69,6.46454198]
[1749480129470,15.07653788,154.71,154.69,6.46454198]
[1749480129857,15.07653788,154.7,154.67,6.4653779]
[1749480130273,15.07653788,154.69,154.66,32.4656678]
[1749480130784,15.07653788,154.7,154.66,32.4656678]
[1749480131455,15.07653788,154.69,154.65,6.46605793]
[1749480131651,18.933972,154.75,154.65,6.46605793]
[1749480131652,15.07653788,154.67,154.65,6.46605793]
[1749480131852,15.07653788,154.67,154.63,16.16665851]
[1749480131853,15.07653788,154.66,154.64,26.0]
[1749480132075,15.07653788,154.67,154.63,47.54358825]
[1749480132385,15.07653788,154.68,154.63,63.71121419]
[1749480132563,15.07653788,154.67,154.63,63.71121419]
[1749480133177,18.64964886,154.7,154.63,63.71121419]
[1749480133378,15.07653788,154.68,154.63,63.71121419]
[1749480134253,15.07653788,154.66,154.63,32.46705037]
[1749480134558,15.07653788,154.65,154.63,32.46705037]
[1749480135052,40.19027251,154.71,154.6,6.4683053]
[1749480135053,15.07653788,154.64,154.6,6.4683053]
[1749480135259,15.07653788,154.63,154.6,6.4683053]
[1749480135670,15.07653788,154.61,154.59,6.46858548]
[1749480135874,15.07653788,154.62,154.59,6.46858548]
[1749480137669,15.07653788,154.61,154.58,32.46899035]
[1749480138061,15.07653788,154.62,154.58,32.46899035]
[1749480140069,15.07653788,154.62,154.58,47.54552823]
[1749480141280,15.07653788,154.62,154.58,32.46899035]
[1749480141468,15.07653788,154.61,154.58,32.46899035]
[1749480141671,18.64964886,154.65,154.56,6.46997929]
[1749480141672,15.07653788,154.6,154.56,6.46997929]
[1749480141860,15.07653788,154.59,154.56,6.46997929]
[1749480142883,15.07653788,154.6,154.56,6.46997929]
[1749480143082,15.07653788,154.6,154.56,21.54651717]
[1749480144394,6.4660359,154.66,154.59,15.07653788]
[1749480144613,15.07653788,154.63,154.59,15.07653788]
[1749480144774,15.07653788,154.63,154.58,15.07653788]
[1749480145094,15.07653788,154.61,154.56,37.72146541]
[1749480145488,15.07653788,154.62,154.57,15.07653788]
[1749480145682,15.07653788,154.62,154.58,15.07653788]
[1749480145885,15.07653788,154.63,154.58,15.07653788]
[1749480146479,15.07653788,154.63,154.59,6.46872372]
[1749480146794,15.07653788,154.62,154.59,6.46872372]
[1749480146980,15.07653788,154.61,154.58,6.46899458]
[1749480147999,15.07653788,154.61,154.59,11.9687151]
[1749480148495,15.07653788,154.6,154.59,5.5]
[1749480152883,15.07653788,154.61,154.59,11.96867783]
[1749480153298,6.46680353,154.64,154.59,11.96867783]
[1749480153475,15.07653788,154.61,154.59,11.96867783]
[1749480155774,15.07653788,154.62,154.59,11.96867783]
[1749480155977,15.07653788,154.61,154.59,11.96867783]
[1749480158306,40.20002659,154.67,154.6,15.07653788]
[1749480158478,15.07653788,154.66,154.62,15.07653788]
[1749480158681,15.07653788,154.68,154.63,15.07653788]
[1749480158900,15.07653788,154.7,154.65,15.07653788]
[1749480159476,1.6486,154.71,154.67,15.07653788]
[1749480159705,16.72513788,154.71,154.67,15.07653788]
[1749480160405,16.72513788,154.71,154.68,6.46495991]
[1749480161681,1.6486,154.71,154.68,6.46495991]
[1749480161885,18.64964886,154.74,154.68,21.54149779]
[1749480162085,15.07653788,154.73,154.68,21.54149779]
[1749480162999,18.64964886,154.74,154.69,15.07653788]
[1749480163303,15.07653788,154.73,154.69,15.07653788]
[1749480163899,15.07653788,154.73,154.68,15.07653788]
[1749480164208,15.07653788,154.72,154.68,15.07653788]
[1749480164411,15.07653788,154.71,154.67,15.07653788]
[1749480164790,15.07653788,154.72,154.67,15.07653788]
[1749480165001,15.07653788,154.72,154.68,6.46495991]
[1749480165304,15.07653788,154.72,154.68,21.54149779]
[1749480166479,15.07653788,154.72,154.68,6.46495991]
[1749480167603,15.07653788,154.73,154.69,15.07653788]
[1749480167805,15.07653788,154.74,154.69,15.07653788]
[1749480168598,15.07653788,154.74,154.7,15.07653788]
[1749480168984,15.07653788,154.74,154.69,15.07653788]
[1749480169185,15.07653788,154.74,154.7,6.46412411]
[1749480169396,1.6486,154.75,154.7,6.46412411]
[1749480169684,15.07653788,154.74,154.7,6.46412411]
[1749480170281,1.6486,154.75,154.71,15.07653788]
[1749480170487,17.30945166,154.76,154.71,15.07653788]
[1749480170699,15.07653788,154.75,154.7,21.54066199]
[1749480171893,15.07653788,154.74,154.7,21.54066199]
[1749480172297,15.07653788,154.74,154.69,15.07653788]
[1749480172508,15.07653788,154.72,154.68,26.0]
[1749480172808,15.07653788,154.73,154.69,15.07653788]
[1749480173208,15.07653788,154.73,154.68,47.54132616]
[1749480173514,2.23291378,154.76,154.7,15.07653788]
[1749480173709,8.69485884,154.76,154.71,15.07653788]
[1749480173887,15.07653788,154.75,154.71,15.07653788]
[1749480174697,21.53862201,154.75,154.7,21.54046894]
[1749480174896,15.07653788,154.74,154.7,6.46393106]
[1749480175496,2.23291378,154.76,154.71,15.07653788]
[1749480175695,17.30945166,154.76,154.72,15.07653788]
[1749480176200,2.23291378,154.76,154.73,15.07653788]
[1749480176516,2.23291378,154.76,154.71,26.0]
[1749480176517,2.23291378,154.76,154.74,15.07653788]
[1749480176810,2.23291378,154.76,154.75,6.46203554]
[1749480178092,2.23291378,154.76,154.74,21.53883253]
[1749480178398,2.23291378,154.76,154.74,6.46229465]
[1749480178916,2.23291378,154.76,154.74,15.07653788]
[1749480180699,2.23291378,154.76,154.75,6.46203554]
[1749480181815,2.23291378,154.76,154.75,21.53857342]
[1749480183299,2.23291378,154.76,154.75,21.68073499]
[1749480185009,2.23291378,154.76,154.74,15.07653788]
[1749480185315,2.23291378,154.76,154.75,26.0]
[1749480186507,17.30945166,154.76,154.71,15.07653788]
[1749480186736,15.07653788,154.75,154.7,6.46412411]
[1749480187027,15.07653788,154.75,154.7,21.54066199]
[1749480187398,15.07653788,154.75,154.7,47.54066199]
[1749480187618,15.07653788,154.75,154.71,15.07653788]
[1749480188015,15.07653788,154.74,154.7,47.54066199]
[1749480188219,15.07653788,154.74,154.7,32.46412411]
[1749480188532,15.07653788,154.73,154.7,32.46412411]
[1749480188713,15.07653788,154.74,154.7,32.46412411]
[1749480189038,15.07653788,154.75,154.71,5.5]
[1749480189331,8.69459597,154.76,154.71,5.5]
[1749480189628,17.30945166,154.76,154.71,20.57653788]
[1749480190729,17.30945166,154.76,154.72,6.46328852]
[1749480191425,2.23291378,154.76,154.72,21.5398264]
[1749480193439,2.23291378,154.76,154.73,15.07653788]
[1749480193629,2.23291378,154.76,154.72,21.5398264]
[1749480193838,17.30945166,154.76,154.72,21.5398264]
[1749480194831,2.23291378,154.76,154.72,21.5398264]
[1749480197716,15.07653788,154.75,154.72,6.46328852]
[1749480197916,17.30945166,154.76,154.72,6.46328852]
[1749480199030,15.07653788,154.75,154.72,6.46328852]
[1749480199738,15.07653788,154.75,154.71,27.04008639]
[1749480199910,15.07653788,154.73,154.71,5.5]
[1749480200739,15.07653788,154.74,154.71,11.9636688]
[1749480201836,8.69455628,154.76,154.71,11.9636688]
[1749480202135,15.07653788,154.74,154.71,11.9636688]
[1749480203032,2.23291378,154.76,154.71,11.9636688]
[1749480203229,15.07653788,154.75,154.71,27.04020668]
[1749480203429,2.23291378,154.76,154.71,27.04020668]
[1749480203430,15.07653788,154.74,154.71,11.9636688]
[1749480203640,15.07653788,154.73,154.71,5.5]
[1749480203830,15.07653788,154.72,154.71,5.5]
[1749480204139,15.07653788,154.72,154.7,26.0]
[1749480204345,15.07653788,154.72,154.69,6.46435433]
[1749480204722,15.07653788,154.71,154.68,32.46480961]
[1749480204930,15.07653788,154.71,154.68,26.0]
[1749480205129,15.07653788,154.71,154.67,6.46534995]
[1749480205644,15.07653788,154.69,154.66,32.46564525]
[1749480205944,15.07653788,154.7,154.66,32.46564525]
[1749480207045,15.07653788,154.71,154.66,63.70667297]
[1749480207245,15.07653788,154.73,154.68,15.07653788]
[1749480208248,15.07653788,154.73,154.69,6.46454198]
[1749480208442,1.5871,154.74,154.69,21.54107986]
[1749480208746,16.66363788,154.74,154.69,37.70243482]
[1749480209226,16.66363788,154.74,154.7,5.5]
[1749480209549,1.5871,154.74,154.7,5.5]